Body Name,Body,Service Level,Expense Type,Expense Code,Narrative,Date,Transaction Number,Amount,Capital and Revenue,Supplier Name,Supplier ID
South Ribble Borough Council,http://statistics.data.gov.uk/id/local-authority/30UE,Capital,Cap Contract Payment,C230,"Footpath works, New longton",06/12/2023,0000494353,15859.5,Revenue,A & G Landscapes & Groundworks LTD,0
South Ribble Borough Council,http://statistics.data.gov.uk/id/local-authority/30UE,Capital,Cap Contract Payment,C230,LABOUR,06/12/2023,0000494353,2500,Revenue,A & G Landscapes & Groundworks LTD,0
South Ribble Borough Council,http://statistics.data.gov.uk/id/local-authority/30UE,Tourism,Reactive Repair & Maintenance,2020,"To alter the internal drainage for 4 No. w/c, , , To connect internal drainage onto new external drain provided by Red Rose, , , ",20/12/2023,0000494763,890,Revenue,Ainscoe Plumbing & Heating Ltd,0
South Ribble Borough Council,http://statistics.data.gov.uk/id/local-authority/30UE,Surplus or Deficit on Trading,Planned Annual Repair & Maintenance,2021,"To supply and fit new Mira Advance shower as per what is currently installed. Required due to vunrable tennant, current shower ha",20/12/2023,0000494906,570,Revenue,Ainscoe Plumbing & Heating Ltd,0
South Ribble Borough Council,http://statistics.data.gov.uk/id/local-authority/30UE,Local Tax Collection,Bank Charges,4811,post office,13/12/2023,0000494643,534.37,Revenue,ALLPAY LTD,0
South Ribble Borough Council,http://statistics.data.gov.uk/id/local-authority/30UE,Economic Development,Publicity & Promotion,4842,"Various items for Christmas Lights Switch On event - Competition prizes, kids activities, face painters etc.",13/12/2023,0000494681,710.9,Revenue,ANDREW & DEBORAH NOBLETT,0
South Ribble Borough Council,http://statistics.data.gov.uk/id/local-authority/30UE,Community Development,Miscellaneous Expenses,4851,0,20/12/2023,0000494992,625,Revenue,Angela Nolan,0
South Ribble Borough Council,http://statistics.data.gov.uk/id/local-authority/30UE,Capital,Capital Grant,C570,DFG WORK FOR PAYMENT TOWARDS A GROUNDFLOOR BEDROOM AND BATHROOM EXTENSION WORKS AT ADDRESS REDACTED AS PER S,13/12/2023,0000494595,30000,Revenue,ASHCROFT LEISURE LIMITED,0
South Ribble Borough Council,http://statistics.data.gov.uk/id/local-authority/30UE,Central Support Services,IT Consumables,413A,"ENGINEER/ATT 1 995.00 995.00, 2 INSTALL/COMM 0.5 695.00 347.50, Sub total 1,342.50, Special Notes and Instructions Subtotal ",20/12/2023,0000494704,1342.5,Revenue,AUDITEL,0
South Ribble Borough Council,http://statistics.data.gov.uk/id/local-authority/30UE,Central Support Services,Miscellaneous Expenses,4851,Waste Collection Calendars as per quote 177743.,13/12/2023,0000494395,4940,Revenue,B & D PRINT SERVICES LTD,0
South Ribble Borough Council,http://statistics.data.gov.uk/id/local-authority/30UE,Short Term Creditors,Amount Paid,0030,28 sept 2023,22/12/2023,0000494207,21878.21,Revenue,Barclays Bank Plc,0
South Ribble Borough Council,http://statistics.data.gov.uk/id/local-authority/30UE,Short Term Creditors,Amount Paid,0030,28 oct 2023,22/12/2023,0000494215,21505.76,Revenue,Barclays Bank Plc,0
South Ribble Borough Council,http://statistics.data.gov.uk/id/local-authority/30UE,Housing Advice,Contributions to Other Bodies,4730,AFFORDABLE WARMTH SCHEME FOR INSULATION WORK AT ADDRESS REDACTED AS PER QUOTE SUPPLIED OF 711.00 INC VAT,06/12/2023,0000494597,711,Revenue,Bartons of Duke Street Ltd,0
South Ribble Borough Council,http://statistics.data.gov.uk/id/local-authority/30UE,Housing Advice,Contributions to Other Bodies,4730,AFFORDABLE WARMTH SCHEME FOR REPLACEMENT BOILER WORK AT ADDRESS REDACTED AS PER QUOTE SUPPLIED OF 3937.50 VAT,13/12/2023,0000494724,3750,Revenue,Bartons of Duke Street Ltd,0
South Ribble Borough Council,http://statistics.data.gov.uk/id/local-authority/30UE,Housing Advice,Contributions to Other Bodies,4730,AFFORDABLE WARMTH SCHEME FOR REPLACEMENT BOILER WORK AT ADDRESS REDACTED PER QUOTE SUPPLIED OF 1804.69 INC VAT,13/12/2023,0000494725,1503.91,Revenue,Bartons of Duke Street Ltd,0
South Ribble Borough Council,http://statistics.data.gov.uk/id/local-authority/30UE,Homelessness,Temporary Accommodation,5311,"I am raising a purchase order so that SRBC can pay Bay Roomz hotel in Morecambe (Marine Road East, East Promenade, Morecambe, Uni",20/12/2023,0000494902,5484,Revenue,Bay Roomz Ltd,0
South Ribble Borough Council,http://statistics.data.gov.uk/id/local-authority/30UE,Central Support Services,Planned Annual Repair & Maintenance,2021,"Work agreed by NAME REDACTED - budget supplied by NAME REDACTED, Two men, Installation of mounted desk sockets to basket trays for two offices. 64 ",13/12/2023,0000494506,1935.89,Revenue,BELEC ELECTRICAL LTD,0
South Ribble Borough Council,http://statistics.data.gov.uk/id/local-authority/30UE,Community Development,Miscellaneous Expenses,4851,0,22/12/2023,0000495000,1875,Revenue,Bernard Keenan,0
South Ribble Borough Council,http://statistics.data.gov.uk/id/local-authority/30UE,Waste Collection,Hiring Expenses,3212,Hire of DAf LF45 160 20ft Tail lift Truck 7.5T @ 300.00 per week 14th August to 8th September 2023,20/12/2023,0000494833,1200,Revenue,Blackburn Van Hire & Sales Limited,0
South Ribble Borough Council,http://statistics.data.gov.uk/id/local-authority/30UE,Central Support Services,Lancashire Payroll Service,4531,iTrent System Charge for SRBC,13/12/2023,0000494478,16000,Revenue,Blackpool Council,0
South Ribble Borough Council,http://statistics.data.gov.uk/id/local-authority/30UE,Short Term Creditors,Amount Paid,0030,Blues and Twos - Nov 23 Deductions from Payroll,13/12/2023,0000494737,6215,Revenue,Blues and Twos Credit Union,0
South Ribble Borough Council,http://statistics.data.gov.uk/id/local-authority/30UE,Capital,Cap Contract Payment,C230,"Additional Variations to Contract (EA1, EAI2, EAI3, EAI4, EAI5) - Leyland Town Deal, Demolition and Asbestos Removal at the Forme",06/12/2023,0000494396,553.5,Revenue,Bradley Demolition Limited,0
South Ribble Borough Council,http://statistics.data.gov.uk/id/local-authority/30UE,Capital,Cap Contract Payment,C230,"Leyland Town Deal - Demolition and Asbestos Removal at the Former Engineering Works Site at Quin Street, Leyland",06/12/2023,0000494403,1100,Revenue,Bradley Demolition Limited,0
South Ribble Borough Council,http://statistics.data.gov.uk/id/local-authority/30UE,Capital,Cap Contract Payment,C230,"Main Contract - Jubilee Gardens Extra Care, West Paddock, Leyland, Construction Contract for Extra Care Facility, Instruction as ",20/12/2023,0000494809,541360.84,Revenue,Caddick Construction (NW) Ltd,0
South Ribble Borough Council,http://statistics.data.gov.uk/id/local-authority/30UE,Central Support Services,Planned Annual Repair & Maintenance,2021,"Annual PAT Testing 2023/2024 for South Ribble Borough Council - , at Civic Centre, Leyland PR25 1DH",06/12/2023,0000493882,704.6,Revenue,Calbarrie Compliance Services Ltd,0
South Ribble Borough Council,http://statistics.data.gov.uk/id/local-authority/30UE,Central Support Services,IT Consumables,413A,"DWP LA Data Share (LADS) Programme: IT Costs for work completed, during the period 1/04/2023 to 30/09/2023 per correspondence dat",06/12/2023,0000494016,2573.06,Revenue,CAPITA BUSINESS SERVICES LTD,0
South Ribble Borough Council,http://statistics.data.gov.uk/id/local-authority/30UE,Central Support Services,Agency Staff,1121,Planning Consultant NAME REDACTED in respect of the Logik planning application,06/12/2023,0000494509,3630,Revenue,CAPITA PROPERTY AND INFRASTRUCTURE LTD,0
South Ribble Borough Council,http://statistics.data.gov.uk/id/local-authority/30UE,Recreation & Sport,Licences Fee General,488B,23/24,13/12/2023,0000494649,1125,Revenue,Carr Street Community Centre,0
South Ribble Borough Council,http://statistics.data.gov.uk/id/local-authority/30UE,Community Development,Miscellaneous Expenses,4851,Providing 151 asylum seekers clothes and shoes on 20 November.,20/12/2023,0000494899,4538.95,Revenue,CENTRAL LANCASHIRE AGE CONCERN LTD,0
South Ribble Borough Council,http://statistics.data.gov.uk/id/local-authority/30UE,Local Tax Collection,Postage General,4291,"UK Mail paid by Chorley in relation to Garden Waste Letters 1,244.22, Council Tax Leaflets 8,252.71 and two separate SRBC Leade",13/12/2023,0000493933,8252.71,Revenue,CHORLEY BOROUGH COUNCIL,0
South Ribble Borough Council,http://statistics.data.gov.uk/id/local-authority/30UE,Democratic Represent and  Mgnt,Postage General,4291,"UK Mail paid by Chorley in relation to Garden Waste Letters 1,244.22, Council Tax Leaflets 8,252.71 and two separate SRBC Leade",13/12/2023,0000493933,55500.06,Revenue,CHORLEY BOROUGH COUNCIL,0
South Ribble Borough Council,http://statistics.data.gov.uk/id/local-authority/30UE,Recycling,Postage General,4291,"UK Mail paid by Chorley in relation to Garden Waste Letters 1,244.22, Council Tax Leaflets 8,252.71 and two separate SRBC Leade",13/12/2023,0000493933,1244.22,Revenue,CHORLEY BOROUGH COUNCIL,0
South Ribble Borough Council,http://statistics.data.gov.uk/id/local-authority/30UE,Planning Policy,Professional Fees,4510,Local Plan Recharges 2022/23,13/12/2023,0000494758,155090,Revenue,CHORLEY BOROUGH COUNCIL,0
South Ribble Borough Council,http://statistics.data.gov.uk/id/local-authority/30UE,Regulatory Services,Operational Equip & Tools,4010,"Calibration of , Trojan Noise Nuisance Recorder & Calibrator 430.00, Outdoor Kit CR515 234.00, Carriage , Collection 30.00, Re",20/12/2023,0000494761,712,Revenue,CIRRUS RESEARCH PLC,0
South Ribble Borough Council,http://statistics.data.gov.uk/id/local-authority/30UE,Recreation & Sport,Reactive Repair & Maintenance,2020,"SRBC contribution towards the refurbishment of the kitchen at Moss Side Community Centre, As per agreement with NAME REDACTED",20/12/2023,0000494898,2000,Revenue,Community Network and Outreach,0
South Ribble Borough Council,http://statistics.data.gov.uk/id/local-authority/30UE,Capital,Cap Vehicles,C440,24x 1100ltr 0700 red bins at 118.00,13/12/2023,0000494562,2832,Revenue,Contenur UK Ltd,0
South Ribble Borough Council,http://statistics.data.gov.uk/id/local-authority/30UE,Capital,Cap Professional Fees,C210,Leyland Town Deal - Highways Consultancy Fees Quin St RIBA 4,13/12/2023,0000493414,6137,Revenue,Curtins Consulting Ltd,0
South Ribble Borough Council,http://statistics.data.gov.uk/id/local-authority/30UE,Capital,Cap Professional Fees,C210,Leyland Town Deal - Traffic and Transport Engineering Services Professional Fees - Procurement 4: Construction of BASE2 & Commerc,13/12/2023,0000493415,3923,Revenue,Curtins Consulting Ltd,0
South Ribble Borough Council,http://statistics.data.gov.uk/id/local-authority/30UE,Capital,Cap Professional Fees,C210,Leyland Town Deal - Traffic and Transport Engineering Services Professional Fees - Procurement 5: Conversion of Balfour Court & R,13/12/2023,0000493416,1291,Revenue,Curtins Consulting Ltd,0
South Ribble Borough Council,http://statistics.data.gov.uk/id/local-authority/30UE,Capital,Cap Professional Fees,C210,Leyland Town Deal - Traffic and Transport Engineering Services Professional Fees - Procurement 3: Public Realm (RIBA 4),13/12/2023,0000493417,4887,Revenue,Curtins Consulting Ltd,0
South Ribble Borough Council,http://statistics.data.gov.uk/id/local-authority/30UE,Short Term Debtors,Amount Paid,0030,Cycle Scheme for NAME REDACTED,13/12/2023,0000494580,583.33,Revenue,CYCLESCHEME CO  UK,0
South Ribble Borough Council,http://statistics.data.gov.uk/id/local-authority/30UE,Community Development,Miscellaneous Expenses,4851,0,20/12/2023,0000494980,625,Revenue,Danielle Mensah,0
South Ribble Borough Council,http://statistics.data.gov.uk/id/local-authority/30UE,Community Development,Miscellaneous Expenses,4851,0,20/12/2023,0000494995,625,Revenue,Debbie Moore,0
South Ribble Borough Council,http://statistics.data.gov.uk/id/local-authority/30UE,Central Support Services,Materials General,4040,"2 x Air Bellows @ 400.12 each, VIN REDACTED, JFC-20939",06/12/2023,0000494038,800.24,Revenue,DENNIS EAGLE LTD,0
South Ribble Borough Council,http://statistics.data.gov.uk/id/local-authority/30UE,Central Support Services,Materials General,4040,2 x Drop Links @ 258.05 each,06/12/2023,0000494038,516.1,Revenue,DENNIS EAGLE LTD,0
South Ribble Borough Council,http://statistics.data.gov.uk/id/local-authority/30UE,Central Support Services,External Contractors Charges,4570,"Job repair 879239, VIN REDACTED, JFC 20610",20/12/2023,0000494795,1192.98,Revenue,DENNIS EAGLE LTD,0
South Ribble Borough Council,http://statistics.data.gov.uk/id/local-authority/30UE,Central Support Services,Materials General,4040,"Hub and bearing assembler, 2 x Wheels, Bolts, Wheel Nuts, VIN REDACTED, , JFC 20297",20/12/2023,0000494799,2372.83,Revenue,DENNIS EAGLE LTD,0
South Ribble Borough Council,http://statistics.data.gov.uk/id/local-authority/30UE,Surplus or Deficit on Trading,Planned Annual Repair & Maintenance,2021,Quotation for remedial works found on the recent fire alarm service visit at unit 1 momentum place. 1. Replacement of the fire pa,06/12/2023,0000494356,726,Revenue,DES Electrical Services Ltd,0
South Ribble Borough Council,http://statistics.data.gov.uk/id/local-authority/30UE,Surplus or Deficit on Trading,Planned Annual Repair & Maintenance,2021,Quotation for remedial works found on the recent fire alarm service visit unit 2 momentum place. We advise the below works are ca,20/12/2023,0000494961,856,Revenue,DES Electrical Services Ltd,0
South Ribble Borough Council,http://statistics.data.gov.uk/id/local-authority/30UE,Local Tax Collection,Professional Fees,4510,Hub Software (SBRR solution),20/12/2023,0000494896,1750,Revenue,Destin Solutions Limited,0
South Ribble Borough Council,http://statistics.data.gov.uk/id/local-authority/30UE,Open Spaces,GM Refurbishment,4657,Seats and tables as per Quote ref Q6750 revised,06/12/2023,0000494275,5317,Revenue,EARTH ANCHORS LTD,0
South Ribble Borough Council,http://statistics.data.gov.uk/id/local-authority/30UE,Capital,Cap Contract Payment,C230,Seats and tables as per Quote ref Q6750 revised,06/12/2023,0000494275,6268,Revenue,EARTH ANCHORS LTD,0
South Ribble Borough Council,http://statistics.data.gov.uk/id/local-authority/30UE,Central Support Services,IT Consumables,413A,Esri cloud renewnal contract,13/12/2023,0000494453,6848,Revenue,ESRI (UK) LTD,0
South Ribble Borough Council,http://statistics.data.gov.uk/id/local-authority/30UE,Recognised Cap Grants & Conts,Contributions Parish Councils,4731,Community Infrastructure Levy (CIL) payment for Farington Parish Council re planning application07/2020/00544/REM - Land Off Cros,06/12/2023,0000494567,31307.65,Revenue,FARINGTON PARISH COUNCIL,0
South Ribble Borough Council,http://statistics.data.gov.uk/id/local-authority/30UE,Recognised Cap Grants & Conts,Contributions Parish Councils,4731,Community Infrastructure Levy (CIL) payment for Farington Parish Council re planning application 07/2020/00552/FUL (Phase 3) - La,06/12/2023,0000494568,12195.53,Revenue,FARINGTON PARISH COUNCIL,0
South Ribble Borough Council,http://statistics.data.gov.uk/id/local-authority/30UE,Recognised Cap Grants & Conts,Contributions Parish Councils,4731,"Community Infrastructure Levy (CIL) payment for Farrington re planning application - Land adj Beech Wood, Chain House Lane re pla",06/12/2023,0000494571,10405.69,Revenue,FARINGTON PARISH COUNCIL,0
South Ribble Borough Council,http://statistics.data.gov.uk/id/local-authority/30UE,Open Spaces,GM Refurbishment,4657,Range of shackles/sheer nuts(Quotation number 62861).,13/12/2023,0000494337,536.7,Revenue,FENLAND LEISURE LTD,0
South Ribble Borough Council,http://statistics.data.gov.uk/id/local-authority/30UE,Parking Services,Maintenance & Repair,4013,Repairs to P&D machine Worden Park,13/12/2023,0000494605,1800,Revenue,Flowbird Smart City UK Ltd,0
South Ribble Borough Council,http://statistics.data.gov.uk/id/local-authority/30UE,Central Support Services,Legal,4821,"Payment of professional fees relating to Employment Tribunal Claim, Invoice no: 631926",06/12/2023,0000494460,1133.5,Revenue,Forbes Solicitors Office,0
South Ribble Borough Council,http://statistics.data.gov.uk/id/local-authority/30UE,Central Support Services,Materials General,4040,"Yoke Ram, Yoke Ram bushes, Yoke pins, Locking Plate, Main Bushes, , VIN REDACTED, JFC 20648",06/12/2023,0000493806,1226.04,Revenue,GEESINK NORBA LTD,0
South Ribble Borough Council,http://statistics.data.gov.uk/id/local-authority/30UE,Central Support Services,Materials General,4040,"2x Plate Erlan PUR flap Bin G054 @ 196.79ea, 6x Buffer Bin G006 @ 11.39ea, 2x Sensor Bin G022 @ 348.63 ea",06/12/2023,0000494090,1159.18,Revenue,GEESINK NORBA LTD,0
South Ribble Borough Council,http://statistics.data.gov.uk/id/local-authority/30UE,Central Support Services,Materials General,4040,"4x Bushes - Bin G003, 4x Buffers - Bin G006, 2x Pin - Bin G056, 2x Clamp Switch - Bin G010, 3x Plant Cleavers - Bin G010, 3x High",20/12/2023,0000494892,1035.58,Revenue,GEESINK NORBA LTD,0
South Ribble Borough Council,http://statistics.data.gov.uk/id/local-authority/30UE,Community Development,Miscellaneous Expenses,4851,"The Purchase of scarves, gloves, and hats for 350 asylum seekers as discussed and agreed with NAME REDACTED",20/12/2023,0000494811,4575,Revenue,Ghulam Sabir T/A The Sox Co.,0
South Ribble Borough Council,http://statistics.data.gov.uk/id/local-authority/30UE,Development Control,Consultancy Fees,4541,Barrister fees - Central Lancashire Local Plan,20/12/2023,0000494839,1750,Revenue,Giles Cannock,0
South Ribble Borough Council,http://statistics.data.gov.uk/id/local-authority/30UE,Corporate Management,Merchant Charges,4816,,22/12/2023,0000494201,3081.1,Revenue,GLOBAL PAYMENTS (GPUK LLP),0
South Ribble Borough Council,http://statistics.data.gov.uk/id/local-authority/30UE,Corporate Management,Merchant Charges,4816,,22/12/2023,0000494203,1173.53,Revenue,GLOBAL PAYMENTS (GPUK LLP),0
South Ribble Borough Council,http://statistics.data.gov.uk/id/local-authority/30UE,Corporate Management,Merchant Charges,4816,31 oct 23,22/12/2023,0000494211,1230.13,Revenue,GLOBAL PAYMENTS (GPUK LLP),0
South Ribble Borough Council,http://statistics.data.gov.uk/id/local-authority/30UE,Corporate Management,Merchant Charges,4816,31 oct 23,22/12/2023,0000494213,2997.14,Revenue,GLOBAL PAYMENTS (GPUK LLP),0
South Ribble Borough Council,http://statistics.data.gov.uk/id/local-authority/30UE,Central Support Services,Reactive Repair & Maintenance,2020,"Please attend site and replace 3no pumps and 2no fans to main boilers. Following investigation. , As per quote. Report to NAME REDACTED",13/12/2023,0000494559,4353.19,Revenue,GOS Heating Ltd,0
South Ribble Borough Council,http://statistics.data.gov.uk/id/local-authority/30UE,Recreation & Sport,Reactive Repair & Maintenance,2020,"Penwortham LC, Crow Hills Road, Preston PR1 0JE, , Undertake intrusive structural survey. The nature of the survey is to look for",06/12/2023,0000494472,525,Revenue,GRAHAM SCHOFIELD ASSOCIATES,0
South Ribble Borough Council,http://statistics.data.gov.uk/id/local-authority/30UE,Recreation & Sport,Reactive Repair & Maintenance,2020,"Undertake intrusive structural survey. The nature of the survey is to look for RAAC beams. Provide a full report upon completion,",06/12/2023,0000494473,525,Revenue,GRAHAM SCHOFIELD ASSOCIATES,0
South Ribble Borough Council,http://statistics.data.gov.uk/id/local-authority/30UE,Capital,Cap Contract Payment,C230,Design and build of new Junior and Teen Playground at Bent Lane Leyland,20/12/2023,0000494908,9198.05,Revenue,HAGS SMP LTD,0
South Ribble Borough Council,http://statistics.data.gov.uk/id/local-authority/30UE,Capital,Misc Capital Payments,C234,Additional Power Outlets for new CCTV install at Bamber Bridge Football Hub as per NAME REDACTED request,06/12/2023,0000494512,2588.25,Revenue,Halliday Lighting Ltd,0
South Ribble Borough Council,http://statistics.data.gov.uk/id/local-authority/30UE,Central Support Services,Software Licensing,4243,"Access control hardware, Door installation and configuration (including PM), Time recording hardware, Professional Services, Tota",20/12/2023,0000494020,5412,Revenue,HFX LTD,0
South Ribble Borough Council,http://statistics.data.gov.uk/id/local-authority/30UE,Recreation & Sport,Licences Fee General,488B,management fee,13/12/2023,0000494648,1000,Revenue,HIGHER WALTON COMMUNITY CENTRE,0
South Ribble Borough Council,http://statistics.data.gov.uk/id/local-authority/30UE,Short Term Creditors,Amount Received,0140,,06/12/2023,0000494012,1835.01,Revenue,HM REVENUE & CUSTOMS,0
South Ribble Borough Council,http://statistics.data.gov.uk/id/local-authority/30UE,Short Term Creditors,Amount Paid,0030,HMRC Income Tax - Nov 23 Deductions from Payroll,13/12/2023,0000494745,191965.81,Revenue,HM REVENUE & CUSTOMS 065PV00107808,0
South Ribble Borough Council,http://statistics.data.gov.uk/id/local-authority/30UE,Unapportionable Central OHeads,Apprentice Levy,1111,HMRC App Levy - Nov 23 Deductions from Payroll,13/12/2023,0000494746,5804,Revenue,HM REVENUE & CUSTOMS 065PV00107808,0
South Ribble Borough Council,http://statistics.data.gov.uk/id/local-authority/30UE,Short Term Creditors,Amount Paid,0030,HMRC NI EE's - Nov 23 Deductions from Payroll,13/12/2023,0000494747,108124.74,Revenue,HM REVENUE & CUSTOMS 065PV00107808,0
South Ribble Borough Council,http://statistics.data.gov.uk/id/local-authority/30UE,Short Term Creditors,Amount Paid,0030,HMRC NI ER's - Nov 23 Deductions from Payroll,13/12/2023,0000494748,147831.88,Revenue,HM REVENUE & CUSTOMS 065PV00107808,0
South Ribble Borough Council,http://statistics.data.gov.uk/id/local-authority/30UE,Short Term Creditors,Amount Paid,0030,HMRC Student Loans - Nov 23 Deductions from Payroll,13/12/2023,0000494750,9883,Revenue,HM REVENUE & CUSTOMS 065PV00107808,0
South Ribble Borough Council,http://statistics.data.gov.uk/id/local-authority/30UE,Short Term Creditors,Amount Paid,0030,HMRC Post Grad Loans- Nov 23 Deductions from Payroll,13/12/2023,0000494751,873,Revenue,HM REVENUE & CUSTOMS 065PV00107808,0
South Ribble Borough Council,http://statistics.data.gov.uk/id/local-authority/30UE,Central Support Services,Reactive Repair & Maintenance,2020,"Members Resource room to be be turned into a kitchenette, , Plumbing The installation of a waste pump under the sink. The pipewor",06/12/2023,0000493877,2553,Revenue,Holden Building Solutions Limited,0
South Ribble Borough Council,http://statistics.data.gov.uk/id/local-authority/30UE,Central Support Services,Reactive Repair & Maintenance,2020,LABOUR,06/12/2023,0000493877,1976.55,Revenue,Holden Building Solutions Limited,0
South Ribble Borough Council,http://statistics.data.gov.uk/id/local-authority/30UE,Recognised Cap Grants & Conts,Contributions Parish Councils,4731,Community Infrastructure Levy (CIL) payment for Hutton Parish Council re planning application 07/2022/00019/FUL ADDRESS REDACTED,06/12/2023,0000494573,5374.35,Revenue,HUTTON PARISH COUNCIL,0
South Ribble Borough Council,http://statistics.data.gov.uk/id/local-authority/30UE,Open Spaces,GM Refurbishment,4657,4x prosafe gate repair kits.,13/12/2023,0000493808,900,Revenue,IAE,0
South Ribble Borough Council,http://statistics.data.gov.uk/id/local-authority/30UE,Community Development,Miscellaneous Expenses,4851,0,20/12/2023,0000495002,1125,Revenue,Ian Dockney,0
South Ribble Borough Council,http://statistics.data.gov.uk/id/local-authority/30UE,Central Support Services,Franked Post,4292,Imail hybrid standard mono letter,20/12/2023,0000494584,2583.6,Revenue,Imail Comms Limited,0
South Ribble Borough Council,http://statistics.data.gov.uk/id/local-authority/30UE,Central Support Services,Franked Post,4292,Imail hybrid standard mono letter,20/12/2023,0000494785,2138.79,Revenue,Imail Comms Limited,0
South Ribble Borough Council,http://statistics.data.gov.uk/id/local-authority/30UE,Central Support Services,Franked Post,4292,cancelled by credit,20/12/2023,0000494786,2153.56,Revenue,Imail Comms Limited,0
South Ribble Borough Council,http://statistics.data.gov.uk/id/local-authority/30UE,Central Support Services,Materials General,4040,QC10 - QUICK SET CONCRETE-QC10,06/12/2023,0000494173,1367.52,Revenue,INSTARMAC GROUP PLC,0
South Ribble Borough Council,http://statistics.data.gov.uk/id/local-authority/30UE,Corporate Management,College Course,1403,"Professional Licensing Practitioners Qualification , (Licensing Practitioner) for NAME REDACTED",20/12/2023,0000494939,578,Revenue,INSTITUTE OF LICENSING EVENTS LTD,0
South Ribble Borough Council,http://statistics.data.gov.uk/id/local-authority/30UE,Capital,Misc Capital Payments,C234,"Contract award - Greens dance studio refurbishment, following full tender exercise and procurement. , As per ITQ & SOW., Order as",20/12/2023,0000494700,31569.03,Revenue,J & K Construction Limited,0
South Ribble Borough Council,http://statistics.data.gov.uk/id/local-authority/30UE,Community Development,Miscellaneous Expenses,4851,0,20/12/2023,0000494990,625,Revenue,Jemma Naish,0
South Ribble Borough Council,http://statistics.data.gov.uk/id/local-authority/30UE,Community Development,Miscellaneous Expenses,4851,0,20/12/2023,0000495003,1625,Revenue,John House,0
South Ribble Borough Council,http://statistics.data.gov.uk/id/local-authority/30UE,Community Development,Miscellaneous Expenses,4851,0,20/12/2023,0000494996,625,Revenue,Keith Rutherford,0
South Ribble Borough Council,http://statistics.data.gov.uk/id/local-authority/30UE,Surplus or Deficit on Trading,Electricity,2303,elec,20/12/2023,0000494916,808.61,Revenue,Kinex,0
South Ribble Borough Council,http://statistics.data.gov.uk/id/local-authority/30UE,Trade Waste,Landfilll Charges,5412,"Quarter 2 Disposal Fee, Landfill Tax & 5% Admin Fee.",13/12/2023,0000494454,63981.96,Revenue,LANCS COUNTY COUNCIL,0
South Ribble Borough Council,http://statistics.data.gov.uk/id/local-authority/30UE,Local Land Charges,L C C General,4530,Land Charges - October 2023,06/12/2023,0000494471,629,Revenue,LANCS COUNTY COUNCIL,0
South Ribble Borough Council,http://statistics.data.gov.uk/id/local-authority/30UE,Central Support Services,Materials General,4040,"filter kit, fuel filter, gear box filter, 2nd axel spring arb bush, front axel spring arb bush, ball joint, ball joint, exhaust p",13/12/2023,0000494557,1202.55,Revenue,LANCS DAF,0
South Ribble Borough Council,http://statistics.data.gov.uk/id/local-authority/30UE,Central Support Services,Materials General,4040,"Turbo Actuator, VIN REDACTED, JFC21080",13/12/2023,0000494714,1375,Revenue,LANCS DAF,0
South Ribble Borough Council,http://statistics.data.gov.uk/id/local-authority/30UE,Central Support Services,Materials General,4040,"1x filter kit & 1x gear box filters, VIN REDACTED, JFC21110",20/12/2023,0000494936,538.62,Revenue,LANCS DAF,0
South Ribble Borough Council,http://statistics.data.gov.uk/id/local-authority/30UE,Capital,Cap Contract Payment,C230,"Construction of pocket park at Mounsey Road, Bamber Bridge",13/12/2023,0000493839,28458.11,Revenue,LANDSCAPE ENGINEERING LIMITED,0
South Ribble Borough Council,http://statistics.data.gov.uk/id/local-authority/30UE,Recreation & Sport,Reactive Repair & Maintenance,2020,Height Barrier Repair Works at Bamber Bridge Leisure Centre as per NAME REDACTED request,06/12/2023,0000494514,1250,Revenue,LANDSCAPE ENGINEERING LIMITED,0
South Ribble Borough Council,http://statistics.data.gov.uk/id/local-authority/30UE,Capital,Cap Contract Payment,C230,"Path Repairs & Improvements, Worden Park, Leyland",20/12/2023,0000494881,66181.44,Revenue,LANDSCAPE ENGINEERING LIMITED,0
South Ribble Borough Council,http://statistics.data.gov.uk/id/local-authority/30UE,Capital,Cap Contract Payment,C230,For the provision of all Design and Construction arising from the Proposed new 2nr x 106.00m x 70m Football 3G Artificial Grass P,22/12/2023,0000492660,52897.18,Revenue,LANO SPORTS NV,0
South Ribble Borough Council,http://statistics.data.gov.uk/id/local-authority/30UE,Capital,Cap Contract Payment,C230,Principal Designer Services - Public Realm RIBA Stages 3-7,06/12/2023,0000485910,2503.9,Revenue,Lanpro Services Ltd,0
South Ribble Borough Council,http://statistics.data.gov.uk/id/local-authority/30UE,Capital,Cap Contract Payment,C230,Principal Designer Services - Public Realm RIBA Stages 3-7,06/12/2023,0000485912,4700,Revenue,Lanpro Services Ltd,0
South Ribble Borough Council,http://statistics.data.gov.uk/id/local-authority/30UE,Capital,Cap Contract Payment,C230,Principal Designer Services - Public Realm RIBA Stages 3-7,06/12/2023,0000491703,3000,Revenue,Lanpro Services Ltd,0
South Ribble Borough Council,http://statistics.data.gov.uk/id/local-authority/30UE,Capital,Cap Contract Payment,C230,"Additional finds required as a result of credits received on GRNd orders. , , Credit note applied to incorrect invoices.",06/12/2023,0000492104,4000,Revenue,Lanpro Services Ltd,0
South Ribble Borough Council,http://statistics.data.gov.uk/id/local-authority/30UE,Capital,Cap Professional Fees,C210,Leyland Town Deal - Architect (Landscape) Professional Fees - Procurement 3: Public Realm (RIBA 4),06/12/2023,0000493046,1250,Revenue,Lanpro Services Ltd,0
South Ribble Borough Council,http://statistics.data.gov.uk/id/local-authority/30UE,Capital,Cap Contract Payment,C230,"Additional finds required as a result of credits received on GRNd orders. , , Credit note applied to incorrect invoices.",06/12/2023,0000493058,3203.9,Revenue,Lanpro Services Ltd,0
South Ribble Borough Council,http://statistics.data.gov.uk/id/local-authority/30UE,Capital,Cap Professional Fees,C210,Leyland Town Deal - Architect (Landscape) Professional Fees - Procurement 4: Construction of BASE2 & Commercial Building A (RIBA ,06/12/2023,0000493809,1000,Revenue,Lanpro Services Ltd,0
South Ribble Borough Council,http://statistics.data.gov.uk/id/local-authority/30UE,Capital,Cap Professional Fees,C210,Leyland Town Deal - Architect (Landscape) Professional Fees - Procurement 5: Conversion of Balfour Court & Refurbishment of Leyla,06/12/2023,0000493810,650,Revenue,Lanpro Services Ltd,0
South Ribble Borough Council,http://statistics.data.gov.uk/id/local-authority/30UE,Capital,Cap Contract Payment,C230,"Additional finds required as a result of credits received on GRNd orders. , , Credit note applied to incorrect invoices.",06/12/2023,0000494491,7700,Revenue,Lanpro Services Ltd,0
South Ribble Borough Council,http://statistics.data.gov.uk/id/local-authority/30UE,Capital,Cap Contract Payment,C230,"Additional finds required as a result of credits received on GRNd orders. , , Credit note applied to incorrect invoices.",06/12/2023,0000494515,4700,Revenue,Lanpro Services Ltd,0
South Ribble Borough Council,http://statistics.data.gov.uk/id/local-authority/30UE,Capital,Cap Contract Payment,C230,"Additional finds required as a result of credits received on GRNd orders. , , Credit note applied to incorrect invoices.",06/12/2023,0000494516,4700,Revenue,Lanpro Services Ltd,0
South Ribble Borough Council,http://statistics.data.gov.uk/id/local-authority/30UE,Capital,Cap Contract Payment,C230,"Additional finds required as a result of credits received on GRNd orders. , , Credit note applied to incorrect invoices.",06/12/2023,0000494517,4821.79,Revenue,Lanpro Services Ltd,0
South Ribble Borough Council,http://statistics.data.gov.uk/id/local-authority/30UE,Capital,Cap Professional Fees,C210,Leyland Town Deal - Architect (Landscape) Professional Fees - Procurement 4: Construction of BASE2 & Commercial Building A (RIBA ,13/12/2023,0000494588,800,Revenue,Lanpro Services Ltd,0
South Ribble Borough Council,http://statistics.data.gov.uk/id/local-authority/30UE,Recognised Cap Grants & Conts,Contributions Parish Councils,4731,Community Infrastructure Levy (CIL) payment for Longton Parish Council re planning application 07/2022/00928/FUL - Land to the Ea,06/12/2023,0000494572,18279.34,Revenue,LONGTON PARISH COUNCIL,0
South Ribble Borough Council,http://statistics.data.gov.uk/id/local-authority/30UE,Corporate Management,Short Course,1402,Community Safety Training,20/12/2023,0000493359,999,Revenue,MALLARD CONSULTANCY LTD,0
South Ribble Borough Council,http://statistics.data.gov.uk/id/local-authority/30UE,Community Development,Miscellaneous Expenses,4851,0,20/12/2023,0000495001,825,Revenue,Margaret Whitham,0
South Ribble Borough Council,http://statistics.data.gov.uk/id/local-authority/30UE,Open Spaces,GM Refurbishment,4657,x2 loads of Muck away from Worden Park Depot @ 260.00 per load.,13/12/2023,0000494556,520,Revenue,Michael Alty,0
South Ribble Borough Council,http://statistics.data.gov.uk/id/local-authority/30UE,Suspended Items,Agency Staff,1121,Appointment of (NAME REDACTED) Procurement Officer for 6 months. 22.08.2023  21.0.2.2024,06/12/2023,0000494094,2375,Revenue,Michael Page International Recruitment Limited,0
South Ribble Borough Council,http://statistics.data.gov.uk/id/local-authority/30UE,Suspended Items,Agency Staff,1121,Appointment of (NAME REDACTED) Procurement Officer for 6 months. 22.08.2023  21.0.2.2024,06/12/2023,0000494289,2375,Revenue,Michael Page International Recruitment Limited,0
South Ribble Borough Council,http://statistics.data.gov.uk/id/local-authority/30UE,Suspended Items,Agency Staff,1121,Appointment of (NAME REDACTED) Procurement Officer for 6 months. 22.08.2023  21.0.2.2024,06/12/2023,0000494293,16625,Revenue,Michael Page International Recruitment Limited,0
South Ribble Borough Council,http://statistics.data.gov.uk/id/local-authority/30UE,Suspended Items,Agency Staff,1121,Appointment of (NAME REDACTED) Procurement Officer for 6 months. 22.08.2023  21.0.2.2024,06/12/2023,0000494398,2375,Revenue,Michael Page International Recruitment Limited,0
South Ribble Borough Council,http://statistics.data.gov.uk/id/local-authority/30UE,Suspended Items,Agency Staff,1121,Appointment of (NAME REDACTED) Procurement Officer for 6 months. 22.08.2023  21.0.2.2024,06/12/2023,0000494399,2375,Revenue,Michael Page International Recruitment Limited,0
South Ribble Borough Council,http://statistics.data.gov.uk/id/local-authority/30UE,Suspended Items,Agency Staff,1121,Appointment of (NAME REDACTED) Procurement Officer for 6 months. 22.08.2023  21.0.2.2024,13/12/2023,0000494668,2375,Revenue,Michael Page International Recruitment Limited,0
South Ribble Borough Council,http://statistics.data.gov.uk/id/local-authority/30UE,Suspended Items,Agency Staff,1121,Appointment of (NAME REDACTED) Procurement Officer for 6 months. 22.08.2023  21.0.2.2024,13/12/2023,0000494734,2375,Revenue,Michael Page International Recruitment Limited,0
South Ribble Borough Council,http://statistics.data.gov.uk/id/local-authority/30UE,Suspended Items,Agency Staff,1121,Appointment of (NAME REDACTED) Procurement Officer for 6 months. 22.08.2023  21.0.2.2024,20/12/2023,0000494937,2375,Revenue,Michael Page International Recruitment Limited,0
South Ribble Borough Council,http://statistics.data.gov.uk/id/local-authority/30UE,Surplus or Deficit on Trading,Reactive Repair & Maintenance,2020,KINGS FOLD DENTIST fit full seamless gutter. Reseal all flashings and windows. As agreed on site with NAME REDACTED. Q-1254,20/12/2023,0000494950,1800,Revenue,Mick Bamber,0
South Ribble Borough Council,http://statistics.data.gov.uk/id/local-authority/30UE,Capital,Misc Capital Payments,C234,"VERNONS CHANGING ROOMS., Prime Flat roof. Apply one layer of torch-on felt. Apply mineral felt to all detail., As agreed on site ",20/12/2023,0000494951,2400,Revenue,Mick Bamber,0
South Ribble Borough Council,http://statistics.data.gov.uk/id/local-authority/30UE,Corporate Management,Short Course,1402,Lantra Hedge Trimmer Training,20/12/2023,0000494066,877.98,Revenue,Millhouse Training Ltd,0
South Ribble Borough Council,http://statistics.data.gov.uk/id/local-authority/30UE,Central Support Services,Legal,4821,"Advising in conference - Pickerings farm, Invoice no: 484429",20/12/2023,0000494856,3500,Revenue,Mr David Manley QC,0
South Ribble Borough Council,http://statistics.data.gov.uk/id/local-authority/30UE,Central Support Services,Legal,4821,Statutory Review - Pickerings Farm site.,13/12/2023,0000494712,900,Revenue,MR IAN PONTER,0
South Ribble Borough Council,http://statistics.data.gov.uk/id/local-authority/30UE,Central Support Services,Legal,4821,"Advice relating to School Lane Super Saver, Preston-Licensing",06/12/2023,0000494498,581.25,Revenue,Mr Leo Charalambides,0
South Ribble Borough Council,http://statistics.data.gov.uk/id/local-authority/30UE,Economic Development,Grants Voluntary Organisation,4711,BEE Scheme `First Kick Management LTD,20/12/2023,0000494815,2000,Revenue,Mr Mark Ganner,0
South Ribble Borough Council,http://statistics.data.gov.uk/id/local-authority/30UE,Economic Development,Grants Voluntary Organisation,4711,BEE Scheme `Centurion Graphics,20/12/2023,0000494813,2000,Revenue,Mr Martyn Hall,0
South Ribble Borough Council,http://statistics.data.gov.uk/id/local-authority/30UE,Economic Development,Grants Voluntary Organisation,4711,BEE Scheme `Every Generation,20/12/2023,0000494812,2000,Revenue,Mrs Alison Wilkinson,0
South Ribble Borough Council,http://statistics.data.gov.uk/id/local-authority/30UE,Economic Development,Grants Voluntary Organisation,4711,BEE Scheme `Hanley`s Catering,20/12/2023,0000494814,2000,Revenue,Mrs Sarah Hanlon,0
South Ribble Borough Council,http://statistics.data.gov.uk/id/local-authority/30UE,Capital,Capital Grant,C570,"DFG WORK FOR ADAPTATION FOR A LEVEL ACCESS SHOWER AT ADDRESS REDACTED AS PER SRBC PLANS AND QUOTE SUPPLIED OF 6130.00, 50%",06/12/2023,0000494405,2835.15,Revenue,MSG Building and Construction Ltd,0
South Ribble Borough Council,http://statistics.data.gov.uk/id/local-authority/30UE,Recognised Cap Grants & Conts,Contributions Parish Councils,4731,Community Infrastructure Levy (CIL) payment for Much Hoole Parish Council re planning application 07/2021/01001/FUL ADDRESS REDACTED,06/12/2023,0000494569,4820.79,Revenue,MUCH HOOLE PARISH COUNCIL,0
South Ribble Borough Council,http://statistics.data.gov.uk/id/local-authority/30UE,Community Development,Miscellaneous Expenses,4851,0,20/12/2023,0000494997,625,Revenue,Muriel Laws,0
South Ribble Borough Council,http://statistics.data.gov.uk/id/local-authority/30UE,Homelessness,Temporary Accommodation,5311,"I am raising a purchase order, so that we can pay National Hotel Rooms � trading as Purple Roomz � the sum of 16,400.36 for hote",13/12/2023,0000494675,13863.48,Revenue,National Hotel Rooms Ltd t/a Purple Roomz,0
South Ribble Borough Council,http://statistics.data.gov.uk/id/local-authority/30UE,Community Development,Temporary Accommodation,5311,"I am raising a purchase order, so that we can pay National Hotel Rooms � trading as Purple Roomz � the sum of 16,400.36 for hote",13/12/2023,0000494675,2536.88,Revenue,National Hotel Rooms Ltd t/a Purple Roomz,0
South Ribble Borough Council,http://statistics.data.gov.uk/id/local-authority/30UE,Homelessness,Temporary Accommodation,5311,"Purchase order to pay Purple Roomz (National Hotel Rooms trading as Purple Roomz) the sum of 17,050.83 for bookings made by the ",20/12/2023,0000494879,12103.61,Revenue,National Hotel Rooms Ltd t/a Purple Roomz,0
South Ribble Borough Council,http://statistics.data.gov.uk/id/local-authority/30UE,Community Development,Temporary Accommodation,5311,"Purchase order to pay Purple Roomz (National Hotel Rooms trading as Purple Roomz) the sum of 17,050.83 for bookings made by the ",20/12/2023,0000494879,4947.22,Revenue,National Hotel Rooms Ltd t/a Purple Roomz,0
South Ribble Borough Council,http://statistics.data.gov.uk/id/local-authority/30UE,Homelessness,Temporary Accommodation,5311,"Purchase order for Purple Roomz hotel in Bamber Bridge., , We owe them 1,646.50 for a homelessness Section 188 placement, NAME REDACTED",20/12/2023,0000494947,1646.5,Revenue,National Hotel Rooms Ltd t/a Purple Roomz,0
South Ribble Borough Council,http://statistics.data.gov.uk/id/local-authority/30UE,Economic Development,Operational Equip & Tools,4010,Supply of 48 x 3m marquee for Leyland Christmas Light Switch On,06/12/2023,0000494486,2854,Revenue,NATIONWIDE MARQUEE HIRE LTD,0
South Ribble Borough Council,http://statistics.data.gov.uk/id/local-authority/30UE,Central Support Services,Materials General,4040,CHANNEL BRUSH - 2.8 mm POLY & 3.3mm WIRE 5 row 700/1000mm - MIDI SWEEPER- 78399/2,06/12/2023,0000494355,770.87,Revenue,NORTHERN MUNICIPAL SPARES LTD,0
South Ribble Borough Council,http://statistics.data.gov.uk/id/local-authority/30UE,Central Support Services,Materials General,4040,SCARAB MINI SWEEPER BRUSHES - POLY/WIRE MIX-MATHIEU-0120089,20/12/2023,0000494806,1118.21,Revenue,NORTHERN MUNICIPAL SPARES LTD,0
South Ribble Borough Council,http://statistics.data.gov.uk/id/local-authority/30UE,Parking Services,Parking Attendants,4514,"Variable Fee Car Park Enforcement , OCTOBER 2023 - Variable Recharge , Items",20/12/2023,0000494838,2286.2,Revenue,NSL LTD,0
South Ribble Borough Council,http://statistics.data.gov.uk/id/local-authority/30UE,Parking Services,Parking Attendants,4514,"Variable Fee Car Park Enforcement , NOVEMBER 2023 - Variable Recharge , Items",20/12/2023,0000494841,2106.8,Revenue,NSL LTD,0
South Ribble Borough Council,http://statistics.data.gov.uk/id/local-authority/30UE,Economic Development,Operational Equip & Tools,4010,"Leyland Light Switch On - Delivery and collection of generator, festive Lighting and all services on the day",06/12/2023,0000494503,675,Revenue,Paul K Sound & Vision,0
South Ribble Borough Council,http://statistics.data.gov.uk/id/local-authority/30UE,Open Spaces,GM Refurbishment,4657,Works to the gate at the rear of the coach house,13/12/2023,0000494450,500,Revenue,PDP PROPERTY SERVICES LTD,0
South Ribble Borough Council,http://statistics.data.gov.uk/id/local-authority/30UE,Central Support Services,Planned Annual Repair & Maintenance,2021,"Quote Number QU-0733 Reference Moss side depot asper NAME REDACTED request , , Replacement of old doors, internally, inline with building",13/12/2023,0000494674,5630,Revenue,PDP PROPERTY SERVICES LTD,0
South Ribble Borough Council,http://statistics.data.gov.uk/id/local-authority/30UE,Recognised Cap Grants & Conts,Contributions Parish Councils,4731,Community Infrastructure Levy (CIL) payment for Penwortham Town Council re planning application 07/2021/00797/FUL - Land at Crown,06/12/2023,0000494566,1551.59,Revenue,PENWORTHAM TOWN COUNCIL,0
South Ribble Borough Council,http://statistics.data.gov.uk/id/local-authority/30UE,Community Development,Miscellaneous Expenses,4851,0,20/12/2023,0000494983,625,Revenue,Peter Goulding,0
South Ribble Borough Council,http://statistics.data.gov.uk/id/local-authority/30UE,Central Support Services,Group life Insurance,1819,Group Life Assurance Scheme - Final premium payment 2023,13/12/2023,0000494261,2151.16,Revenue,PHOENIX LIFE LTD,0
South Ribble Borough Council,http://statistics.data.gov.uk/id/local-authority/30UE,Central Support Services,Rental,4012,"2023 / 2024 annual contract for the provision of sanitary services to the Civic Centre as per your ref 105796	, , to include duty",06/12/2023,0000494414,1374.45,Revenue,PHS GROUP PLC,0
South Ribble Borough Council,http://statistics.data.gov.uk/id/local-authority/30UE,Tourism,Rental,4012,2023/ 2024 Annual Contract for Sanitary Services at Worden Hall,13/12/2023,0000494610,1517.31,Revenue,PHS GROUP PLC,0
South Ribble Borough Council,http://statistics.data.gov.uk/id/local-authority/30UE,Central Support Services,Agency Staff,1121,Enforcement consultant NAME REDACTED,06/12/2023,0000494271,1935,Revenue,Planning Control & PACE Solutions,0
South Ribble Borough Council,http://statistics.data.gov.uk/id/local-authority/30UE,Central Support Services,Agency Staff,1121,Enforcement consultant NAME REDACTED,20/12/2023,0000494589,1290,Revenue,Planning Control & PACE Solutions,0
South Ribble Borough Council,http://statistics.data.gov.uk/id/local-authority/30UE,Recreation & Sport,Reactive Repair & Maintenance,2020,Fire Escape Edge Protection Handrail Works at Leyland Leisure centre as per NAME REDACTED request,13/12/2023,0000494647,1580,Revenue,Preston Scaffolding NW Ltd.,0
South Ribble Borough Council,http://statistics.data.gov.uk/id/local-authority/30UE,Recreation & Sport,Reactive Repair & Maintenance,2020,Additional Scaffold Requirements for PSDS Works at Leyland Leisure Centre. as per NAME REDACTED request,13/12/2023,0000494671,3465,Revenue,Preston Scaffolding NW Ltd.,0
South Ribble Borough Council,http://statistics.data.gov.uk/id/local-authority/30UE,Central Support Services,Planned Annual Repair & Maintenance,2021,Scaffolding Requirements for Civic Centre for PSDS & Edge Protection as per NAME REDACTED request,13/12/2023,0000494673,3450,Revenue,Preston Scaffolding NW Ltd.,0
South Ribble Borough Council,http://statistics.data.gov.uk/id/local-authority/30UE,Central Support Services,Planned Annual Repair & Maintenance,2021,Permanent Handrail at Civic Centre,13/12/2023,0000494673,1300,Revenue,Preston Scaffolding NW Ltd.,0
South Ribble Borough Council,http://statistics.data.gov.uk/id/local-authority/30UE,Central Support Services,Agency Staff,1121,"NAME REDACTED- HGV Teschnician 40 hours @ 27.19ph , W/C 20.11.23",06/12/2023,0000494449,1006.03,Revenue,Proactive Personnel Limited,0
South Ribble Borough Council,http://statistics.data.gov.uk/id/local-authority/30UE,Central Support Services,Agency Staff,1121,"NAME REDACTED- HGV Teschnician 40 hours @ 27.19ph , W/C 27.11.23",13/12/2023,0000494697,815.7,Revenue,Proactive Personnel Limited,0
South Ribble Borough Council,http://statistics.data.gov.uk/id/local-authority/30UE,Homelessness,Other Fees,4520,"Management of interim accommodation carried out by Progress Housing Group � Annual Management Fee 2023-24  11,714.04 plus VAT @",06/12/2023,0000494544,11714.04,Revenue,PROGRESS HOUSING GRP ref:DNSOU001,0
South Ribble Borough Council,http://statistics.data.gov.uk/id/local-authority/30UE,Open Spaces,GM Refurbishment,4657,To carry out a structural inspection of the cableway wooden beams/foundations at Withy Grove Playground as per quotation 2308.396,20/12/2023,0000494526,975,Revenue,PROLUDIC LTD,0
South Ribble Borough Council,http://statistics.data.gov.uk/id/local-authority/30UE,Open Spaces,GM Refurbishment,4657,A range of spare parts at Withy Grove Playground as per Quotation ref. 2310.40601 Aug 23,13/12/2023,0000494527,13424.85,Revenue,PROLUDIC LTD,0
South Ribble Borough Council,http://statistics.data.gov.uk/id/local-authority/30UE,Open Spaces,GM Refurbishment,4657,A range of spare parts at Withy Grove Playground as per Quotation ref. 2310.40601 Aug 23,13/12/2023,0000494528,2180.54,Revenue,PROLUDIC LTD,0
South Ribble Borough Council,http://statistics.data.gov.uk/id/local-authority/30UE,Short Term Creditors,Amount Paid,0030,Prudential - Nov 23 Deductions from Payroll,13/12/2023,0000494743,850,Revenue,Prudential,0
South Ribble Borough Council,http://statistics.data.gov.uk/id/local-authority/30UE,Short Term Creditors,Amount Paid,0030,Prudential SS - Nov 23 Deductions from Payroll,13/12/2023,0000494744,5635.13,Revenue,Prudential,0
South Ribble Borough Council,http://statistics.data.gov.uk/id/local-authority/30UE,Central Support Services,Reactive Repair & Maintenance,2020,"RE: MANUFACTURE AND INSTALL NEW DOUBLE DOORS -AREA 1 - ENTRANCE -Boiler room, Take off doors and remove from site., Manufacture a",20/12/2023,0000494874,1650,Revenue,PSR & Sons Joiners & Building Contractors,0
South Ribble Borough Council,http://statistics.data.gov.uk/id/local-authority/30UE,Capital,Misc Capital Payments,C234,"Joinery Works , To Carefully remove door, frame and take away from site. , To Manufacture and install new Softwood casing to suit",20/12/2023,0000494876,1200,Revenue,PSR & Sons Joiners & Building Contractors,0
South Ribble Borough Council,http://statistics.data.gov.uk/id/local-authority/30UE,Corporate Management,Short Course,1402,Asbestos Awareness Training for 82 SR employees,20/12/2023,0000493526,1980,Revenue,QHS SOLUTIONS,0
South Ribble Borough Council,http://statistics.data.gov.uk/id/local-authority/30UE,Corporate Management,College Course,1403,City & Guilds Level 3 Occupational Health & Safety,13/12/2023,0000494733,1200,Revenue,QHS SOLUTIONS,0
South Ribble Borough Council,http://statistics.data.gov.uk/id/local-authority/30UE,Open Spaces,External Contractors Charges,4570,"Jetting and root cutting at South Pond overflow, Longton Brickcroft",06/12/2023,0000494360,600,Revenue,RED ROSE BUILDING MAINTENANCE,0
South Ribble Borough Council,http://statistics.data.gov.uk/id/local-authority/30UE,Recreation & Sport,Reactive Repair & Maintenance,2020,Additional Reactive Drainage Works at South Ribble Tennis Centre,06/12/2023,0000494411,2500,Revenue,RED ROSE BUILDING MAINTENANCE,0
South Ribble Borough Council,http://statistics.data.gov.uk/id/local-authority/30UE,Recreation & Sport,Reactive Repair & Maintenance,2020,LABOUR,06/12/2023,0000494411,2400,Revenue,RED ROSE BUILDING MAINTENANCE,0
South Ribble Borough Council,http://statistics.data.gov.uk/id/local-authority/30UE,Central Support Services,Planned Annual Repair & Maintenance,2021,The area covered is going to need approximately 10m cube of concrete. The area at the moment is currently covered in 600mm x 600m,20/12/2023,0000494835,2400,Revenue,RED ROSE BUILDING MAINTENANCE,0
South Ribble Borough Council,http://statistics.data.gov.uk/id/local-authority/30UE,Central Support Services,Planned Annual Repair & Maintenance,2021,LABOUR,20/12/2023,0000494835,2000,Revenue,RED ROSE BUILDING MAINTENANCE,0
South Ribble Borough Council,http://statistics.data.gov.uk/id/local-authority/30UE,Central Support Services,Planned Annual Repair & Maintenance,2021,"Dig three holes for new lights at moss side depot, lights going in the compound behind storage bays can only be dug by hand appro",20/12/2023,0000494836,600,Revenue,RED ROSE BUILDING MAINTENANCE,0
South Ribble Borough Council,http://statistics.data.gov.uk/id/local-authority/30UE,Tourism,Reactive Repair & Maintenance,2020,"New drainage works, including all new connections and re-instatement of walkway(s) following recent events at worden park., As pe",20/12/2023,0000494873,2000,Revenue,RED ROSE BUILDING MAINTENANCE,0
South Ribble Borough Council,http://statistics.data.gov.uk/id/local-authority/30UE,Tourism,Reactive Repair & Maintenance,2020,MATERIALS,20/12/2023,0000494873,1000,Revenue,RED ROSE BUILDING MAINTENANCE,0
South Ribble Borough Council,http://statistics.data.gov.uk/id/local-authority/30UE,Tourism,Fuel Oil,2301,Additional fuel order. Original order cancelled at year end due to none confirmation of delivery,20/12/2023,0000494831,551.31,Revenue,RIBBLE FUEL OILS,0
South Ribble Borough Council,http://statistics.data.gov.uk/id/local-authority/30UE,Tourism,Fuel Oil,2301,Please deliver 700 litres of kerosene to Worden Park PR5 1DJ - Ruth for access to be delivered asap may need 60 m hose and small ,20/12/2023,0000494943,618.73,Revenue,RIBBLE FUEL OILS,0
South Ribble Borough Council,http://statistics.data.gov.uk/id/local-authority/30UE,Community Development,Miscellaneous Expenses,4851,0,20/12/2023,0000494994,625,Revenue,Richard Lucas,0
South Ribble Borough Council,http://statistics.data.gov.uk/id/local-authority/30UE,Community Development,Miscellaneous Expenses,4851,0,20/12/2023,0000494989,625,Revenue,Richard Spalding,0
South Ribble Borough Council,http://statistics.data.gov.uk/id/local-authority/30UE,Capital,Consultancy,C259,Principle Designer Services (RIBA 4-7) Jubilee Gardens Extra Care,06/12/2023,0000494428,544,Revenue,RJD Associates (NW) Limited,0
South Ribble Borough Council,http://statistics.data.gov.uk/id/local-authority/30UE,Economic Development,Operational Equip & Tools,4010,"Road closure for Leyland light Switch On, including no over night parking signage",06/12/2023,0000494464,968,Revenue,Road Safety Services LTD,0
South Ribble Borough Council,http://statistics.data.gov.uk/id/local-authority/30UE,Central Support Services,External Contractors Charges,4570,"Spec Repair, VIN REDACTED, JFC 20720",06/12/2023,0000493990,4294,Revenue,RTS Muni,0
South Ribble Borough Council,http://statistics.data.gov.uk/id/local-authority/30UE,Central Support Services,Office Requisites,4136,"32 x Maestro Straight Desk 1200mm x 800mm Silver cantilever leg frame, white top @ 120 each",06/12/2023,0000494269,3840,Revenue,Rytetype Limited,0
South Ribble Borough Council,http://statistics.data.gov.uk/id/local-authority/30UE,Central Support Services,Office Requisites,4136,32 x Drop down cable management tray 1000mm long @ 48.00 each.,06/12/2023,0000494269,1536,Revenue,Rytetype Limited,0
South Ribble Borough Council,http://statistics.data.gov.uk/id/local-authority/30UE,Central Support Services,Office Requisites,4136,32 x Jota XL Fabric back operator chair with folding arms & pump up lumbar Era Forward CSE14 (Black)@ 179 each,06/12/2023,0000494269,5728,Revenue,Rytetype Limited,0
South Ribble Borough Council,http://statistics.data.gov.uk/id/local-authority/30UE,Central Support Services,Office Requisites,4136,Enc-pod06-MF Encore 2 pod- 6 person meeting booth-metal frame with configurable white table and power sockets. Era Prime CSE09 (L,06/12/2023,0000494290,2550,Revenue,Rytetype Limited,0
South Ribble Borough Council,http://statistics.data.gov.uk/id/local-authority/30UE,Central Support Services,Materials General,4040,1000 litres Premium Hi Foaming TFR with Wax,06/12/2023,0000494577,1020.43,Revenue,Saanro International Ltd,0
South Ribble Borough Council,http://statistics.data.gov.uk/id/local-authority/30UE,Central Support Services,Materials General,4040,1000 Litres Hi Foam TFR with Wax,06/12/2023,0000494578,1020.43,Revenue,Saanro International Ltd,0
South Ribble Borough Council,http://statistics.data.gov.uk/id/local-authority/30UE,Community Development,Miscellaneous Expenses,4851,0,20/12/2023,0000494981,625,Revenue,Salim Malek,0
South Ribble Borough Council,http://statistics.data.gov.uk/id/local-authority/30UE,Community Development,Miscellaneous Expenses,4851,0,20/12/2023,0000494987,625,Revenue,Sally McDonald,0
South Ribble Borough Council,http://statistics.data.gov.uk/id/local-authority/30UE,Central Support Services,External Contractors Charges,4570,"Spec Repair, VIN REDACTED, JFC-20975",20/12/2023,0000494531,555.55,Revenue,Scarab Sweepers Ltd,0
South Ribble Borough Council,http://statistics.data.gov.uk/id/local-authority/30UE,Central Support Services,IT Consumables,413A,"iCONNECT hosted bacs software - Annual charge for, service and support commencing, 1.00 1,099.00 20% 1,099.00, iCONNECT Hosted (A",20/12/2023,0000493988,1324,Revenue,Smarterpay,0
South Ribble Borough Council,http://statistics.data.gov.uk/id/local-authority/30UE,Short Term Creditors,Amount Paid,0030,Labour Councillors - Nov 23 Deductions from Payroll,13/12/2023,0000494741,2013.83,Revenue,SOUTH RIBBLE LABOUR PARTY LOCAL GOVERNM,0
South Ribble Borough Council,http://statistics.data.gov.uk/id/local-authority/30UE,Short Term Creditors,Amount Received,0140,income transfer from sRBC,13/12/2023,0000494642,70045.87,Revenue,South Ribble Leisure Ltd,0
South Ribble Borough Council,http://statistics.data.gov.uk/id/local-authority/30UE,Recreation & Sport,Professional Fees,4510,Tennis Coaching on the Active Schools Programme between September 2023 and December 2023,13/12/2023,0000494685,1250,Revenue,South Ribble Leisure Ltd,0
South Ribble Borough Council,http://statistics.data.gov.uk/id/local-authority/30UE,Community Development,Contributions to Other Bodies,4730,"HAF+ Oct 23, Total places booked - 192 @ 10 per head equalling 1,920, use of Legend as the booking system @ 550, Total = 2,4",13/12/2023,0000494686,2470,Revenue,South Ribble Leisure Ltd,0
South Ribble Borough Council,http://statistics.data.gov.uk/id/local-authority/30UE,Cash and Cash Equivalents,Amount Paid,0030,donation,20/12/2023,0000494757,2000,Revenue,ST CATHERINES HOSPICE (LANCASHIRE) LTD,0
South Ribble Borough Council,http://statistics.data.gov.uk/id/local-authority/30UE,Service Management & Support,Gas Oil,3134,1500L Gas Oil @ 74.19ppl,06/12/2023,0000494419,1159.35,Revenue,Standard Fuel Oils LtdMain,0
South Ribble Borough Council,http://statistics.data.gov.uk/id/local-authority/30UE,Service Management & Support,Diesel Fuel,3132,"17000 Ltrs Diesel @ 116.96ppl into the , feeder tank at ADDRESS REDACTED Side key for cabinet is available from the , ",06/12/2023,0000494420,20162.11,Revenue,Standard Fuel Oils LtdMain,0
South Ribble Borough Council,http://statistics.data.gov.uk/id/local-authority/30UE,Capital,Capital Grant,C570,"DFG WORK TO SUPPLY AND INSTALL A STAIRLIFT AT ADDRESS REDACTED AS PER QUOTE SUPPLIED OF 3850.00, TOTAL COST 3850.00",06/12/2023,0000494618,3850,Revenue,Stannah Lift Services Ltd,0
South Ribble Borough Council,http://statistics.data.gov.uk/id/local-authority/30UE,Capital,Cap Professional Fees,C210,Leyland Town Deal - MEP Professional Fees - Procurement 4: Construction of BASE2 & Commercial Building A (RIBA 4),20/12/2023,0000492735,6065.7,Revenue,STEVEN A HUNT & ASSOCIATES LTD,0
South Ribble Borough Council,http://statistics.data.gov.uk/id/local-authority/30UE,Capital,Cap Professional Fees,C210,Leyland Town Deal - MEP Professional Fees - Procurement 4: Construction of BASE2 & Commercial Building A (RIBA 4),20/12/2023,0000493728,4043.8,Revenue,STEVEN A HUNT & ASSOCIATES LTD,0
South Ribble Borough Council,http://statistics.data.gov.uk/id/local-authority/30UE,Democratic Represent and  Mgnt,External Catering Charges,4575,12th November 150 hot pot @5.99 a head plus 100 butter pie@5.99 a head with beetroot and usual accoutrements to be delivered 12,20/12/2023,0000494096,1647.5,Revenue,Style Catering,0
South Ribble Borough Council,http://statistics.data.gov.uk/id/local-authority/30UE,Community Development,Miscellaneous Expenses,4851,0,20/12/2023,0000494984,625,Revenue,Susan Hobson,0
South Ribble Borough Council,http://statistics.data.gov.uk/id/local-authority/30UE,Community Development,Miscellaneous Expenses,4851,0,20/12/2023,0000494985,625,Revenue,Tabitha Haliwell,0
South Ribble Borough Council,http://statistics.data.gov.uk/id/local-authority/30UE,Central Support Services,Legal,4821,E-PUBLICATION SERVICES & SOFTWARE SOLUTIONS-Invoice covers Annual subscription period: 21/10/2023 to 20/10/2024 -there should be ,20/12/2023,0000494862,22615.44,Revenue,THOMSON REUTERS,0
South Ribble Borough Council,http://statistics.data.gov.uk/id/local-authority/30UE,Tourism,Electricity,2303,1/11 to 30/11/23,20/12/2023,0000494914,8252.84,Revenue,Total Gas & Power (Elec) 3006014935 - Worden Hall,0
South Ribble Borough Council,http://statistics.data.gov.uk/id/local-authority/30UE,Central Support Services,Electricity,2303,1/11 to 30/11/23,20/12/2023,0000494924,11052.49,Revenue,Total Gas & Power (Elec) 3006014946 - Civic Centre,0
South Ribble Borough Council,http://statistics.data.gov.uk/id/local-authority/30UE,Central Support Services,Electricity,2303,1/11 to 30/11/23,20/12/2023,0000494925,7274.86,Revenue,Total Gas & Power (Elec) 3006014957 - Moss Side De,0
South Ribble Borough Council,http://statistics.data.gov.uk/id/local-authority/30UE,Central Support Services,Electricity,2303,1/11 to 30/11/23,20/12/2023,0000494854,2058.81,Revenue,Total Gas & Power (Elec) 3006031644 - Hurst Grange,0
South Ribble Borough Council,http://statistics.data.gov.uk/id/local-authority/30UE,Open Spaces,Electricity,2303,1/11 to 30/11/23,20/12/2023,0000494920,1176.43,Revenue,Total Gas & Power (Elec) 3006031721 - Kingsfold Pa,0
South Ribble Borough Council,http://statistics.data.gov.uk/id/local-authority/30UE,Open Spaces,Electricity,2303,1/11 to 30/11,20/12/2023,0000494931,732.25,Revenue,Total Gas & Power (Elec) 3006031776 - Worden Park,0
South Ribble Borough Council,http://statistics.data.gov.uk/id/local-authority/30UE,Open Spaces,Electricity,2303,18/11 to 30/11/23,20/12/2023,0000494927,521.88,Revenue,Total Gas & Power (Elec) 3006031820 - King George,0
South Ribble Borough Council,http://statistics.data.gov.uk/id/local-authority/30UE,Central Support Services,Gas,2304,31/10 to 30/11/23,20/12/2023,0000494923,6382.47,Revenue,Total Gas & Power (Gas) 3006046241 - Civic Centre,0
South Ribble Borough Council,http://statistics.data.gov.uk/id/local-authority/30UE,Community Development,Miscellaneous Expenses,4851,0,20/12/2023,0000494986,625,Revenue,Tracey Thom,0
South Ribble Borough Council,http://statistics.data.gov.uk/id/local-authority/30UE,Community Development,Miscellaneous Expenses,4851,0,20/12/2023,0000494991,625,Revenue,Tracy Singleton,0
South Ribble Borough Council,http://statistics.data.gov.uk/id/local-authority/30UE,Housing Advice,External Contractors Charges,4570,HSF FUNDING FOR DOOR AND WINDOW AT ADDRESS REDACTED AS PER QUOTE SUPPLIED OF 5843.40 INC VAT,13/12/2023,0000494726,4869.5,Revenue,TRADE WINDOWS & CONSERVATORIES,0
South Ribble Borough Council,http://statistics.data.gov.uk/id/local-authority/30UE,Housing Advice,External Contractors Charges,4570,HSF FUNDING FOR DOOR AND WINDOW WORK AT ADDRESS REDACTED AS PER QUOTE SUPPLIED OF 4880.00 INC VAT,13/12/2023,0000494727,4066.67,Revenue,TRADE WINDOWS & CONSERVATORIES,0
South Ribble Borough Council,http://statistics.data.gov.uk/id/local-authority/30UE,Capital,Cap Contract Payment,C230,Details - 12 months for Project Director services for the Leyland Town Deal as detailed in fee proposal dated July 2023 as per Po,20/12/2023,0000494845,5200,Revenue,Trebbi Continuum Limited,0
South Ribble Borough Council,http://statistics.data.gov.uk/id/local-authority/30UE,Capital,Cap Contract Payment,C230,Details - 12 months for Project Director services for the Leyland Town Deal as detailed in fee proposal dated July 2023 as per Po,20/12/2023,0000494860,4000,Revenue,Trebbi Continuum Limited,0
South Ribble Borough Council,http://statistics.data.gov.uk/id/local-authority/30UE,Capital,Cap Contract Payment,C230,Details - 12 months for Project Director services for the Leyland Town Deal as detailed in fee proposal dated July 2023 as per Po,20/12/2023,0000494861,3500,Revenue,Trebbi Continuum Limited,0
South Ribble Borough Council,http://statistics.data.gov.uk/id/local-authority/30UE,Central Support Services,External Contractors Charges,4570,Truck tyre Maintenance November 2023,06/12/2023,0000494547,1071.62,Revenue,Tructyre Fleet Management Ltd,0
South Ribble Borough Council,http://statistics.data.gov.uk/id/local-authority/30UE,Central Support Services,UK Healthcare,1710,1 dec 2023,13/12/2023,0000494644,1784.8,Revenue,UK healthcare (BDHSC),0
South Ribble Borough Council,http://statistics.data.gov.uk/id/local-authority/30UE,Economic Development,Operational Equip & Tools,4010,"Special Effects package for Leyland Light Switch On , 2 x Sparkulars (including granules) + Falling Snow",06/12/2023,0000494425,650,Revenue,UK Media Events Ltd,0
South Ribble Borough Council,http://statistics.data.gov.uk/id/local-authority/30UE,Economic Development,Operational Equip & Tools,4010,"Leyland Light Switch on: , - Stage , - Technical , - Crew, - Generators , - Fencing, - Production Management",06/12/2023,0000494426,7737.5,Revenue,UK Media Events Ltd,0
South Ribble Borough Council,http://statistics.data.gov.uk/id/local-authority/30UE,Short Term Creditors,Amount Paid,0030,Unison - Nov 23 Deductions from Payroll,13/12/2023,0000494739,1817,Revenue,Unison,0
South Ribble Borough Council,http://statistics.data.gov.uk/id/local-authority/30UE,Community Development,Miscellaneous Expenses,4851,0,20/12/2023,0000494982,625,Revenue,Vasco Wackrill,0
South Ribble Borough Council,http://statistics.data.gov.uk/id/local-authority/30UE,Democratic Represent and  Mgnt,Civic & Remembrance Day,463A,"Road closure assistance for South Ribble Remembrance Sunday 2023. , 12 November 2023",20/12/2023,0000494152,2880,Revenue,VENTBROOK LTD,0
South Ribble Borough Council,http://statistics.data.gov.uk/id/local-authority/30UE,Community Development,Miscellaneous Expenses,4851,0,20/12/2023,0000494988,625,Revenue,Vivien Mounsey,0
South Ribble Borough Council,http://statistics.data.gov.uk/id/local-authority/30UE,Community Development,Professional Fees,4510,"Wade Hall Community Association : Summer HAF Camps including food @ 14 per place, , Week 1 x60 = 840; , Week 2 x60 = 840; , We",20/12/2023,0000494684,3360,Revenue,Wade Hall Community Association,0
South Ribble Borough Council,http://statistics.data.gov.uk/id/local-authority/30UE,Central Support Services,Materials General,4040,"Prox sensor terberg TCA-DE M18, Sonar Sensor, Control Cable 30cm, Proximity Switch Terberg TCA-DE M12, Ultrasonic Sensor, Ultraso",13/12/2023,0000494615,870.71,Revenue,WasteParts UK Ltd,0
South Ribble Borough Council,http://statistics.data.gov.uk/id/local-authority/30UE,Central Support Services,Water Charges(Metered),2511,surface,20/12/2023,0000494459,2289.13,Revenue,WaterPlus 4080412513 Unit 81 Bison Place,0
South Ribble Borough Council,http://statistics.data.gov.uk/id/local-authority/30UE,Central Support Services,Water Charges(Metered),2511,,13/12/2023,0000494657,518.61,Revenue,"WaterPlus 4083872980 Council Offices, West Paddock",0
South Ribble Borough Council,http://statistics.data.gov.uk/id/local-authority/30UE,Open Spaces,External Contractors Charges,4570,Removal of fallen trees over pathway to rear of Amblesdie Close,06/12/2023,0000494371,650,Revenue,WESTFIELD TREE SERVICES LTD,0
South Ribble Borough Council,http://statistics.data.gov.uk/id/local-authority/30UE,Community Development,Core Fund,4861,Lights for Gregson Lane Living Trees x2,06/12/2023,0000494408,700,Revenue,WESTFIELD TREE SERVICES LTD,0
South Ribble Borough Council,http://statistics.data.gov.uk/id/local-authority/30UE,Open Spaces,External Contractors Charges,4570,ADB Removal of 1 x ash tree at 41 Park Road Leyland,06/12/2023,0000494409,1240,Revenue,WESTFIELD TREE SERVICES LTD,0
South Ribble Borough Council,http://statistics.data.gov.uk/id/local-authority/30UE,Capital,Cap Professional Fees,C210,Leyland Town Deal - Architect & PD (Build) Professional Fees - Procurement 4: Construction of BASE2 & Commercial Building A (RIBA,06/12/2023,0000492541,1050,Revenue,Wilson Mason LLP,0
South Ribble Borough Council,http://statistics.data.gov.uk/id/local-authority/30UE,Capital,Cap Professional Fees,C210,Leyland Town Deal - Architect & PD (Build) Professional Fees - Procurement 4: Construction of BASE2 & Commercial Building A (RIBA,06/12/2023,0000492542,10500,Revenue,Wilson Mason LLP,0
South Ribble Borough Council,http://statistics.data.gov.uk/id/local-authority/30UE,Capital,Cap Professional Fees,C210,Leyland Town Deal - Architect & PD (Build) Professional Fees - Procurement 4: Construction of BASE2 & Commercial Building A (RIBA,06/12/2023,0000492543,1050,Revenue,Wilson Mason LLP,0
